bitfinex/quotes_ETHUSD_20260207
["timestamp","ask_amount","ask_price","bid_price","bid_amount"]
[1770489494558,1.1132882,2099.5,2097.8,1.14938404]
[1770489494709,2.30410462,2099.4,2097.8,1.14938404]
[1770489495037,1.1132882,2099.3,2097.8,1.14938404]
[1770489496934,1.19092987,2099.2,2097.8,1.14938404]
[1770489497131,1.1132882,2099.3,2097.8,1.14938404]
[1770489498943,1.19092987,2099.2,2097.5,0.02993239]
[1770489499248,1.1132882,2099.1,2097.5,0.02993239]
[1770489500220,1.1132882,2099.1,2097.5,0.001]
[1770489500624,1.1132882,2098.9,2097.5,0.001]
[1770489501241,6.54620373,2099.2,2097.5,1.15038404]
[1770489501548,0.002,2099.1,2097.8,1.14938404]
[1770489501749,1.1152882,2099.1,2097.5,0.001]
[1770489501948,1.1152882,2099.1,2097.5,1.15038404]
[1770489502148,0.002,2099.1,2097.8,1.14938404]
[1770489505548,0.002,2099.1,2097.5,1.22182271]
[1770489505549,0.002,2099.1,2098.0,1.14938404]
[1770489506057,0.002,2099.1,2097.9,0.02893239]
[1770489506058,0.002,2099.1,2098.3,1.14938404]
[1770489508232,1.1152882,2099.1,2097.5,1.15038404]
[1770489508956,1.1132882,2099.0,2097.5,1.15038404]
[1770489510132,1.14222059,2098.9,2097.5,1.15038404]
[1770489510337,1.1132882,2098.9,2097.5,1.15038404]
[1770489510555,0.002,2099.1,2097.6,1.17831643]
[1770489511135,1.1152882,2099.1,2097.6,0.02893239]
[1770489511349,1.1132882,2098.9,2097.5,0.001]
[1770489511862,0.002,2099.3,2098.4,1.14938404]
[1770489512156,0.002,2099.3,2098.5,0.02893239]
[1770489512463,0.002,2099.3,2098.5,1.17831643]
[1770489513852,0.002,2099.3,2098.2,0.02893239]
[1770489514155,0.002,2099.3,2098.6,1.14938404]
[1770489514573,0.002,2099.3,2098.7,0.02893239]
[1770489515277,0.002,2099.3,2098.7,1.17831643]
[1770489515746,0.002,2099.1,2098.7,1.14938404]
[1770489515948,0.002,2099.1,2097.8,0.2335703]
[1770489515949,0.002,2099.1,2097.8,0.02893239]
[1770489516147,0.002,2099.1,2097.8,1.14866119]
[1770489516352,0.002,2099.1,2097.9,1.1197288]
[1770489517642,0.002,2099.1,2098.1,0.02893239]
[1770489517964,0.002,2099.3,2098.5,1.1197288]
[1770489518270,0.002,2099.3,2098.1,1.1197288]
[1770489521173,0.002,2099.3,2097.9,0.02893239]
[1770489521548,1.052318,2099.3,2097.7,1.1197288]
[1770489522657,1.052318,2099.3,2097.8,0.02893239]
[1770489522867,1.052318,2099.3,2097.8,1.14866119]
[1770489523572,1.052318,2099.3,2098.1,0.02893239]
[1770489523762,0.002,2099.3,2098.1,1.14866119]
[1770489528186,0.002,2099.1,2098.1,1.14866119]
[1770489528785,0.002,2099.1,2098.4,0.02893239]
[1770489529087,0.002,2099.1,2098.4,1.1197288]
[1770489529990,0.002,2099.1,2098.1,1.14866119]
[1770489530361,0.002,2099.1,2098.1,1.1197288]
[1770489530563,1.052318,2099.1,2098.0,0.001]
[1770489532595,1.050318,2098.9,2098.0,0.001]
[1770489532796,6.076318,2098.8,2098.0,0.001]
[1770489533711,0.002,2099.1,2098.0,0.001]
[1770489533862,0.002,2099.1,2098.3,0.02893239]
[1770489534170,0.002,2099.1,2098.0,0.001]
[1770489534171,0.002,2099.1,2098.0,1.1207288]
[1770489534675,0.002,2099.1,2098.2,1.1197288]
[1770489537099,0.002,2099.1,2098.4,1.14866119]
[1770489537581,0.002,2099.3,2098.5,1.1197288]
[1770489538087,0.3288732,2099.8,2098.8,1.14866119]
[1770489539099,0.3288732,2099.8,2099.1,1.14866119]
[1770489539293,0.3288732,2099.8,2098.7,0.02893239]
[1770489540199,0.3288732,2099.8,2098.8,1.1197288]
[1770489540397,0.3288732,2099.8,2099.3,1.14866119]
[1770489540988,0.3308732,2099.8,2099.3,1.14866119]
[1770489541179,0.3228732,2099.8,2099.3,1.1197288]
[1770489541384,0.3228732,2099.8,2098.5,1.1197288]
[1770489541972,0.3228732,2099.8,2098.5,2.31105147]
[1770489542282,0.3228732,2099.8,2098.8,1.14866119]
[1770489543791,1.050318,2099.7,2098.3,0.02893239]
[1770489544012,0.3228732,2099.8,2098.3,1.14866119]
[1770489544181,0.3228732,2099.8,2098.6,1.14866119]
[1770489544381,0.3228732,2099.8,2098.9,0.02893239]
[1770489544606,0.3228732,2099.8,2098.9,1.14866119]
[1770489546487,0.3228732,2099.8,2098.8,1.19110732]
[1770489546488,0.3228732,2099.8,2098.7,1.03570216]
[1770489547711,0.3228732,2099.8,2098.5,1.19127687]
[1770489548025,0.3228732,2099.8,2098.6,1.06463455]
[1770489548185,0.3228732,2099.8,2099.0,1.03570216]
[1770489548520,0.3228732,2099.8,2098.9,0.02893239]
[1770489548521,0.3228732,2099.8,2099.2,1.06463455]
[1770489549025,0.002,2100.2,2099.2,1.06463455]
[1770489550884,0.002,2100.2,2098.9,1.06463455]
[1770489551279,0.002,2100.2,2098.9,1.03570216]
[1770489551811,1.09202783,2100.2,2098.7,0.02893239]
[1770489552310,1.09202783,2100.2,2098.7,1.09977729]
[1770489552900,1.09202783,2100.2,2098.8,2.26200175]
[1770489553208,1.09202783,2100.2,2098.9,1.0708449]
[1770489553585,1.09202783,2100.2,2099.1,0.001]
[1770489553784,0.002,2100.0,2099.1,0.001]
[1770489554425,0.002,2100.0,2098.9,0.99177729]
[1770489554652,0.002,2100.0,2099.2,1.0708449]
[1770489555815,0.002,2100.0,2099.3,0.02893239]
[1770489556191,1.09002783,2099.9,2099.0,0.37486713]
[1770489556390,1.09002783,2099.9,2098.9,0.001]
[1770489557210,0.002,2100.0,2098.9,0.001]
[1770489558913,1.09202783,2100.0,2098.9,0.001]
[1770489561256,0.002,2100.0,2098.9,1.0718449]
[1770489561665,0.002,2100.0,2099.0,0.02893239]
[1770489562260,0.002,2100.0,2098.9,0.001]
[1770489562564,1.09202783,2100.0,2098.9,0.001]
[1770489563231,0.002,2100.0,2098.9,1.0718449]
[1770489563435,0.002,2100.0,2099.0,1.09977729]
[1770489564161,0.002,2100.0,2099.0,1.0708449]
[1770489565851,0.002,2100.0,2099.1,0.001]
[1770489568750,0.002,2100.0,2099.1,1.0718449]
[1770489568956,0.002,2100.0,2099.1,1.10077729]
[1770489569722,1.09202783,2100.0,2099.1,0.001]
[1770489570528,1.11896022,2099.9,2098.9,0.001]
[1770489570728,1.11896022,2099.9,2098.2,0.001]
[1770489570729,1.09002783,2099.7,2098.2,0.001]
[1770489570935,1.09002783,2099.6,2098.2,0.001]
[1770489574139,1.09002783,2099.4,2098.2,0.001]
[1770489574862,1.09002783,2099.3,2098.2,0.001]
[1770489577247,1.11191509,2099.1,2098.2,0.001]
[1770489578755,1.11191509,2099.1,2098.4,0.001]
[1770489579569,1.11191509,2099.4,2098.4,0.001]
[1770489580266,1.11191509,2099.2,2098.4,0.001]
[1770489582453,1.11191509,2099.7,2098.4,1.04434714]
[1770489582697,1.11191509,2099.7,2098.6,0.02893239]
[1770489583049,0.002,2099.8,2098.6,1.07227953]
[1770489583583,1.11391509,2099.8,2098.6,1.07227953]
[1770489584477,0.002,2099.8,2098.6,1.07227953]
[1770489584977,0.002,2099.8,2098.9,1.07227953]
[1770489585983,0.002,2100.0,2099.4,1.07227953]
[1770489586148,0.002,2100.0,2099.4,1.04334714]
[1770489587206,0.002,2100.0,2098.7,1.04334714]
[1770489587350,0.002,2100.0,2098.6,0.02893239]
[1770489587351,1.11391509,2100.0,2098.6,0.02893239]
[1770489587682,1.11391509,2100.0,2098.6,1.07227953]
[1770489587890,1.11391509,2100.0,2098.6,1.22019379]
[1770489588182,1.11391509,2100.0,2098.7,1.04334714]
[1770489588351,0.002,2100.0,2098.7,1.04334714]
[1770489589370,1.11391509,2100.0,2098.7,1.04334714]
[1770489589581,1.11391509,2100.0,2098.6,0.02893239]
[1770489590186,1.11391509,2100.0,2098.5,6.35443428]
[1770489590680,1.11391509,2100.0,2098.6,1.07227953]
[1770489590857,0.002,2100.0,2098.9,1.07227953]
[1770489592064,0.002,2099.8,2098.9,1.07227953]
[1770489593394,0.002,2099.8,2098.6,1.07227953]
[1770489594778,0.002,2099.8,2098.6,1.04334714]
[1770489595091,1.11391509,2099.8,2098.5,6.35443428]
[1770489595762,1.11391509,2099.8,2098.5,7.39778142]
[1770489597690,1.11391509,2099.8,2098.5,6.35443428]
[1770489599298,1.11391509,2099.8,2098.6,1.04334714]
[1770489599779,0.002,2099.8,2098.6,1.07227953]
[1770489600463,0.002,2099.8,2099.0,1.04334714]
[1770489602096,1.11391509,2099.8,2098.5,6.35443428]
[1770489602289,1.11391509,2099.8,2098.6,1.04334714]
[1770489602599,1.11391509,2099.8,2098.5,6.35443428]
[1770489604107,1.11391509,2099.8,2098.7,0.001]
[1770489605972,0.002,2099.8,2098.9,1.09583431]
[1770489609869,0.002,2099.8,2098.9,0.02893239]
[1770489610120,1.12255776,2099.8,2098.7,0.001]
[1770489611206,1.11933036,2099.6,2098.7,0.001]
[1770489611791,0.002,2099.8,2098.7,0.001]
[1770489612311,0.002,2099.8,2098.9,1.13310943]
[1770489613605,1.11933036,2099.7,2098.7,0.001]
[1770489615808,1.11933036,2099.6,2098.7,0.001]
[1770489617309,1.11933036,2099.6,2099.1,0.001]
[1770489618384,0.002,2099.8,2099.1,0.001]
[1770489618784,1.12133036,2099.8,2099.1,0.001]
[1770489619880,1.11933036,2099.5,2098.7,0.001]
[1770489620081,0.002,2099.8,2098.7,0.001]
[1770489620082,6.14533036,2099.4,2098.7,0.001]
[1770489620281,1.19064628,2099.7,2098.5,6.35543428]
[1770489620282,1.11933036,2098.9,2098.5,6.35543428]
[1770489620518,1.11933036,2098.9,2098.4,0.001]
[1770489622725,1.11933036,2098.9,2098.2,0.001]
[1770489623018,1.11933036,2098.5,2097.5,0.001]
[1770489624905,0.35720614,2098.7,2097.5,1.10517704]
[1770489625507,0.35720614,2098.7,2097.7,1.10417704]
[1770489625692,0.35720614,2098.7,2097.6,0.02893239]
[1770489625901,0.35720614,2098.7,2097.6,1.13310943]
[1770489626797,1.11933036,2098.6,2097.6,0.02893239]
[1770489627016,0.35720614,2098.7,2097.6,0.02893239]
[1770489627299,0.35720614,2098.7,2097.6,1.13310943]
[1770489629807,0.35720614,2098.7,2097.9,1.13310943]
[1770489630004,0.35720614,2098.7,2097.6,1.13310943]
[1770489630192,0.35720614,2098.7,2097.6,0.02893239]
[1770489630400,1.4765365,2098.7,2097.8,0.001]
[1770489630927,1.4785365,2098.7,2097.8,0.001]
[1770489635126,0.35920614,2098.7,2097.9,0.02893239]
[1770489635313,0.35920614,2098.7,2097.9,1.13310943]
[1770489636908,0.35920614,2098.7,2097.9,1.10417704]
[1770489637115,0.35920614,2098.7,2097.8,0.001]
[1770489640735,1.43382293,2098.7,2097.8,0.001]
[1770489640908,1.07461679,2098.6,2097.8,0.001]
[1770489641409,1.07461679,2098.4,2097.8,0.001]
[1770489642521,1.07461679,2098.3,2097.8,0.001]
[1770489642928,1.07461679,2098.3,2098.0,0.001]
[1770489644337,0.35411637,2098.5,2098.0,0.001]
[1770489644926,1.42873316,2098.5,2098.0,0.001]
[1770489646357,0.35411637,2098.5,2098.0,0.001]
[1770489649649,1.07461679,2098.4,2098.0,0.001]
[1770489649816,1.07461679,2098.4,2097.8,0.001]
[1770489650744,1.07461679,2098.3,2097.8,0.001]
[1770489655258,0.35114407,2098.4,2097.8,0.001]
[1770489655559,0.35114407,2098.4,2098.0,0.001]
[1770489655726,0.002,2098.1,2098.0,0.001]
[1770489662354,1.07661679,2098.1,2097.8,0.001]
[1770489662561,1.07661679,2098.1,2097.5,0.001]
[1770489662926,5.026,2097.9,2097.3,0.001]
[1770489663130,0.02893239,2098.0,2096.7,5.16170927]
[1770489663131,1.07461679,2097.7,2096.7,5.16170927]
[1770489663331,1.07461679,2097.6,2096.7,5.16170927]
[1770489663527,1.07461679,2097.6,2096.7,0.001]
[1770489664458,1.07461679,2097.3,2096.7,0.001]
[1770489664641,1.07461679,2097.2,2096.7,0.001]
[1770489665050,1.07461679,2097.1,2096.7,0.001]
[1770489665251,1.07461679,2097.4,2096.7,0.001]
[1770489665557,1.18338979,2097.9,2096.7,0.001]
[1770489666345,1.08098979,2097.4,2096.7,0.001]
[1770489667132,1.08098979,2097.3,2096.7,0.001]
[1770489667337,1.08098979,2097.8,2096.7,0.001]
[1770489667565,1.08098979,2097.7,2096.7,0.001]
[1770489668463,1.21232218,2097.9,2096.9,0.001]
[1770489668966,1.08098979,2097.7,2096.9,0.001]
[1770489670041,1.08098979,2097.5,2096.9,0.001]
[1770489670859,2.27271861,2097.8,2096.9,0.001]
[1770489671140,1.02171063,2097.7,2096.9,0.001]
[1770489672182,1.02171063,2098.0,2096.9,0.001]
[1770489673268,0.002,2098.1,2096.9,0.001]
[1770489673571,0.002,2098.1,2096.9,0.02993239]
[1770489673873,0.002,2098.1,2097.2,0.02893239]
[1770489675280,1.02171063,2098.0,2096.9,0.001]
[1770489676155,0.002,2098.1,2096.9,0.02993239]
[1770489676479,0.002,2098.1,2097.1,0.99080835]
[1770489676668,0.002,2098.1,2096.9,0.02993239]
[1770489677052,0.002,2098.1,2096.9,1.02074074]
[1770489678577,1.02171063,2098.0,2096.9,0.001]
[1770489679149,1.02171063,2097.9,2096.9,0.001]
[1770489679471,6.04771063,2097.7,2096.9,0.001]
[1770489679855,1.02171063,2097.5,2096.9,0.001]
[1770489680777,1.02171063,2097.8,2096.9,0.001]
[1770489680955,0.002,2097.9,2096.9,0.001]
[1770489681751,1.02371063,2097.9,2096.9,0.001]
[1770489681965,6.04971063,2097.9,2096.9,0.001]
[1770489682176,1.02171063,2097.6,2096.9,0.001]
[1770489682578,1.19172466,2097.8,2096.9,0.001]
[1770489682783,0.002,2097.9,2096.9,0.001]
[1770489682983,0.1044,2097.9,2096.9,0.001]
[1770489683182,0.002,2097.9,2096.9,0.001]
[1770489685269,0.002,2097.9,2096.9,0.99180835]
[1770489686992,1.02171063,2097.8,2096.9,0.001]
[1770489687293,6.04771063,2097.5,2096.9,0.001]
[1770489687488,1.02171063,2097.5,2096.9,0.001]
[1770489687691,0.1024,2097.7,2096.9,0.001]
[1770489689114,0.002,2097.9,2096.9,0.99180835]
[1770489689401,0.002,2097.9,2097.1,0.99080835]
[1770489692865,0.002,2097.9,2097.1,0.99180835]
[1770489693075,0.002,2097.7,2097.1,0.99180835]
[1770489693981,0.002,2097.7,2097.3,0.99080835]
[1770489695471,0.002,2097.9,2097.3,0.99080835]
[1770489696976,0.002,2098.1,2097.6,0.99527097]
[1770489697309,0.002,2098.5,2097.7,0.99527097]
[1770489699073,0.002,2098.5,2097.1,0.99627097]
[1770489699401,1.04254194,2098.4,2097.1,0.99627097]
[1770489699775,1.04454194,2098.3,2097.1,0.99627097]
[1770489704674,0.002,2098.3,2097.1,0.99627097]
[1770489704869,0.002,2098.3,2097.7,0.99527097]
[1770489705075,1.04454194,2098.3,2097.1,0.001]
[1770489706202,1.04454194,2098.3,2097.3,0.001]
[1770489706410,1.04254194,2098.0,2097.3,0.001]
[1770489707872,0.002,2098.1,2097.3,0.001]
[1770489708074,1.04254194,2098.0,2097.3,0.001]
[1770489710607,0.002,2098.1,2097.3,0.001]
[1770489710608,1.04454194,2098.1,2097.3,0.001]
[1770489710980,0.002,2098.1,2097.3,0.001]
[1770489711904,0.002,2098.1,2097.3,0.99627097]
[1770489713108,0.002,2098.1,2097.4,1.02420336]
[1770489714203,0.002,2098.1,2097.3,0.001]
[1770489715889,0.002,2098.1,2097.5,1.02420336]
[1770489718210,0.002,2098.1,2097.8,1.02420336]
[1770489718584,0.002,2097.9,2097.8,1.02420336]
[1770489718785,0.002,2098.1,2097.8,1.02420336]
[1770489719426,0.002,2098.1,2097.8,0.02893239]
[1770489719791,0.002,2098.1,2097.8,1.02420336]
[1770489721086,0.002,2098.1,2097.5,0.02993239]
[1770489723314,0.002,2098.1,2097.5,1.02520336]
[1770489724721,0.002,2098.1,2097.5,0.99627097]
[1770489725013,1.04454194,2098.1,2097.5,0.001]
[1770489727196,0.002,2098.1,2097.5,0.001]
[1770489727589,0.002,2098.1,2097.5,0.94754121]
[1770489729624,0.002,2098.1,2097.5,0.001]
[1770489730123,0.002,2098.1,2097.7,0.001]
[1770489736705,0.002,2098.1,2097.7,1.00446733]
[1770489737032,0.002,2098.1,2097.7,0.001]
[1770489742707,0.002,2098.5,2098.0,1.00346733]
[1770489747535,0.002,2098.5,2097.7,1.00446733]
[1770489747731,0.002,2098.5,2097.7,0.001]
[1770489749055,0.002,2098.5,2097.7,1.00446733]
[1770489749547,0.002,2098.5,2097.8,1.03239972]
[1770489751247,0.002,2098.5,2098.0,1.01061633]
[1770489751743,0.002,2098.5,2098.0,0.007149]
[1770489752115,0.002,2098.5,2098.0,1.01061633]
[1770489752316,0.002,2098.5,2098.0,0.007149]
[1770489754253,0.002,2098.5,2098.0,1.01061633]
[1770489754427,0.002,2098.5,2098.0,0.007149]
[1770489754625,0.002,2098.3,2098.0,0.007149]
[1770489754954,0.002,2098.5,2098.0,1.01061633]
[1770489755250,1.02536462,2098.5,2098.0,0.007149]
[1770489755450,0.002,2098.5,2098.0,0.007149]
[1770489755947,0.002,2098.5,2098.0,1.04250844]
[1770489756462,0.37165419,2099.7,2098.7,1.03535944]
[1770489757451,0.97467485,2099.6,2098.3,1.26892974]
[1770489757644,0.97467485,2099.4,2098.3,1.26892974]
[1770489757953,1.34632904,2099.7,2098.3,1.26892974]
[1770489759054,0.37165419,2099.7,2098.6,1.03535944]
[1770489761146,0.97467485,2099.6,2098.6,1.03535944]
[1770489762937,1.34632904,2099.7,2098.6,1.03535944]
[1770489763355,0.97467485,2099.5,2098.5,1.06429183]
[1770489763760,1.34632904,2099.7,2098.5,1.06429183]
[1770489764435,0.97467485,2099.3,2098.5,0.02893239]
[1770489764635,0.97467485,2099.5,2098.5,1.06429183]
[1770489766348,0.97467485,2099.5,2098.5,1.03535944]
[1770489767389,0.97467485,2099.3,2098.3,1.03535944]
[1770489767732,0.97467485,2099.6,2098.5,1.06429183]
[1770489767959,0.002,2099.0,2098.6,1.03535944]
[1770489768161,0.37165419,2099.7,2098.9,1.03535944]
[1770489768333,1.34632904,2099.7,2098.6,1.03535944]
[1770489768531,0.002,2100.1,2099.2,1.03535944]
[1770489768734,0.002,2100.1,2099.0,0.02893239]
[1770489768735,0.002,2100.1,2099.4,1.03535944]
[1770489769637,0.003,2100.4,2099.6,1.06429183]
[1770489770036,1.34470691,2101.0,2099.6,1.06429183]
[1770489770037,0.37003206,2101.0,2100.0,1.03535944]
[1770489770265,1.502,2101.5,2100.0,1.03535944]
[1770489770748,0.97467485,2101.4,2100.0,1.03535944]
[1770489771964,0.97467485,2101.4,2100.1,0.2335703]
[1770489772262,0.97467485,2101.4,2100.2,1.03535944]
[1770489774470,0.97467485,2101.0,2099.8,1.42415165]
[1770489774765,0.97467485,2100.7,2099.8,1.42415165]
[1770489774967,0.97467485,2100.7,2099.1,1.03535944]
[1770489775364,0.97467485,2100.7,2099.3,0.02893239]
[1770489775539,0.97467485,2100.7,2099.3,1.06429183]
[1770489776256,0.97467485,2100.7,2099.3,1.03535944]
[1770489777549,0.97467485,2100.7,2099.5,1.06429183]
[1770489779565,0.97467485,2101.3,2099.9,1.03535944]
[1770489780538,0.97667485,2101.2,2099.9,1.03535944]
[1770489781263,0.002,2101.2,2100.1,1.06429183]
[1770489781751,0.002,2101.2,2100.5,1.03535944]
[1770489782079,0.35969672,2101.4,2100.5,1.03535944]
[1770489782570,0.35969672,2101.4,2100.5,1.06429183]
[1770489782778,0.35969672,2101.4,2100.5,1.03535944]
[1770489784649,0.003,2101.9,2100.7,1.03535944]
[1770489785469,0.003,2101.9,2100.9,0.98708651]
[1770489786086,0.9847135,2101.9,2100.9,0.02893239]
[1770489786294,0.9847135,2101.9,2100.6,0.98708651]
[1770489787094,0.003,2101.9,2100.6,0.98708651]
[1770489789394,0.9847135,2101.9,2100.3,0.02893239]
[1770489789561,0.9847135,2101.9,2100.7,0.95815412]
[1770489790175,0.9847135,2101.9,2100.9,0.02893239]
[1770489791709,0.9847135,2101.9,2101.0,0.93879933]
[1770489791710,0.003,2101.9,2101.0,0.93879933]
[1770489791997,1.0082431,2102.8,2101.2,0.96773172]
[1770489793880,0.003,2103.2,2101.2,0.96773172]
[1770489793881,0.003,2103.2,2101.8,0.02893239]
[1770489794077,0.003,2103.2,2102.1,0.02893239]
[1770489794306,0.003,2103.2,2102.4,0.02893239]
[1770489794519,0.33557708,2103.9,2102.9,0.93879933]
[1770489794806,1.0082431,2103.8,2102.2,0.93879933]
[1770489794983,1.0082431,2103.8,2102.2,0.96773172]
[1770489795168,1.0082431,2103.6,2101.7,6.74202066]
[1770489795375,1.0082431,2103.6,2101.7,5.80322133]
[1770489795565,0.02893239,2103.5,2101.8,0.26250269]
[1770489795770,1.0082431,2103.4,2101.7,5.80322133]
[1770489796168,1.0082431,2103.1,2101.3,0.93879933]
[1770489796373,1.0082431,2103.1,2101.2,6.77095305]
[1770489796569,1.0082431,2103.1,2101.3,0.93879933]
[1770489796974,1.0082431,2103.1,2101.3,0.96773172]
[1770489797431,1.0082431,2103.1,2101.6,0.02893239]
[1770489797813,1.0082431,2103.1,2101.3,0.96773172]
[1770489798113,1.21754076,2103.3,2100.0,0.02893239]
[1770489798114,1.0082431,2102.6,2100.4,0.93879933]
[1770489798272,1.0082431,2102.3,2100.4,0.93879933]
[1770489798474,0.02893239,2102.4,2100.3,1.21917173]
[1770489798475,1.0082431,2102.6,2101.0,0.93879933]
[1770489798696,1.0082431,2102.4,2100.7,5.80322133]
[1770489798873,1.0082431,2102.7,2101.0,0.93879933]
[1770489799276,1.0082431,2102.5,2100.3,0.96773172]
[1770489799480,1.0082431,2102.2,2100.3,0.96773172]
[1770489800202,1.0082431,2102.2,2100.5,0.93979933]
[1770489800385,1.0082431,2102.2,2100.6,0.02893239]
[1770489800585,1.0082431,2102.2,2100.5,0.93979933]
[1770489800899,1.0082431,2102.0,2100.5,0.001]
[1770489801107,1.03717549,2102.0,2100.5,0.001]
[1770489801633,1.0082431,2101.2,2100.5,0.001]
[1770489801923,1.0082431,2101.5,2100.5,0.001]
[1770489802091,1.1892869,2102.1,2100.5,0.001]
[1770489802092,1.0082431,2101.8,2100.5,0.001]
[1770489802278,1.0082431,2101.8,2100.5,0.93979933]
[1770489802477,1.0082431,2101.8,2100.5,0.001]
[1770489802889,1.0082431,2101.8,2100.8,0.00714]
[1770489803513,1.0082431,2102.4,2100.8,0.94593933]
[1770489804304,1.0082431,2101.9,2100.8,0.00714]
[1770489805814,1.0082431,2102.5,2101.0,0.93879933]
[1770489807007,1.0082431,2102.5,2101.0,0.93979933]
[1770489807202,1.0082431,2102.4,2101.0,0.001]
[1770489807408,0.002,2101.8,2101.0,0.001]
[1770489807711,1.0102431,2101.8,2101.0,0.001]
[1770489808713,0.002,2101.8,2101.0,0.93979933]
[1770489809106,0.002,2101.8,2101.3,0.93879933]
[1770489809596,1.0082431,2103.3,2101.6,0.93879933]
[1770489810009,1.0082431,2103.1,2101.6,0.93879933]
[1770489811522,1.0082431,2104.2,2102.4,0.93879933]
[1770489811689,5.80322133,2104.4,2102.3,0.02893239]
[1770489811690,1.0082431,2103.9,2102.3,0.02893239]
[1770489812289,1.0082431,2103.9,2102.6,0.02893239]
[1770489812524,1.0082431,2104.3,2102.6,0.96773172]
[1770489813328,1.03717549,2104.2,2102.3,0.96773172]
[1770489813528,1.0082431,2104.2,2102.6,0.02893239]
[1770489813718,1.0082431,2104.0,2102.4,0.96773172]
[1770489814798,1.0082431,2104.0,2102.8,0.02893239]
[1770489815128,1.0082431,2104.2,2102.8,0.96773172]
[1770489815707,1.3067944,2104.4,2103.1,0.96822613]
[1770489815908,0.32422708,2104.4,2103.1,0.96822613]
[1770489816131,0.32422708,2104.4,2103.4,0.02893239]
[1770489816335,0.32422708,2104.4,2103.4,0.93929374]
[1770489816541,0.32422708,2104.4,2103.2,0.02893239]
[1770489816739,0.32422708,2104.4,2102.6,0.93929374]
[1770489816740,0.98256732,2104.3,2102.6,0.93929374]
[1770489816939,0.98256732,2104.3,2102.8,0.02893239]
[1770489817242,0.98256732,2104.2,2102.9,0.96822613]
[1770489817414,0.32422708,2104.4,2103.2,0.96822613]
[1770489817616,0.32422708,2104.4,2103.5,0.02893239]
[1770489817830,0.32422708,2104.4,2103.5,0.96822613]
[1770489818345,0.32422708,2104.4,2103.5,0.93929374]
[1770489818639,0.32422708,2104.4,2103.6,0.02893239]
[1770489818934,0.32422708,2104.4,2103.6,0.96822613]
[1770489819899,0.32422708,2104.4,2103.6,0.93929374]
[1770489820103,0.002,2104.2,2103.3,0.96822613]
[1770489820538,0.002,2104.2,2103.0,1.17286404]
[1770489820741,0.98256732,2104.1,2102.8,0.93929374]
[1770489821042,0.002,2104.2,2102.9,0.96822613]
[1770489822602,0.98256732,2104.1,2102.9,0.02893239]
[1770489823727,0.98256732,2104.1,2102.8,0.93929374]
[1770489823919,0.002,2104.2,2102.8,0.93929374]
[1770489824521,0.002,2104.2,2103.0,0.93929374]
[1770489825416,0.98456732,2104.2,2102.6,0.02893239]
[1770489825948,0.98456732,2104.2,2102.6,0.93929374]
[1770489826146,0.98456732,2104.2,2102.7,0.02893239]
[1770489826353,0.98256732,2104.1,2102.5,0.93929374]
[1770489826645,0.002,2104.2,2103.7,0.02893239]
[1770489826948,0.98456732,2104.2,2103.2,0.02893239]
[1770489827122,0.98456732,2104.2,2103.6,0.02893239]
[1770489827520,0.002,2104.2,2103.9,0.02893239]
[1770489828439,1.1877613,2104.8,2103.9,0.02893239]
[1770489828640,1.1877613,2104.8,2104.2,0.02893239]
[1770489828841,1.1877613,2104.8,2103.9,0.02893239]
[1770489829036,1.1877613,2104.8,2104.2,0.02893239]
[1770489829731,1.18759203,2105.1,2104.2,0.02893239]
[1770489830227,0.98256732,2105.0,2103.9,0.02893239]
[1770489830430,0.98256732,2105.0,2103.6,0.02893239]
[1770489830634,0.98256732,2105.0,2103.7,1.18837676]
[1770489831232,0.98256732,2105.0,2104.0,1.18818476]
[1770489831435,0.98256732,2105.0,2103.9,1.2172004]
[1770489831762,1.18770487,2104.9,2104.0,1.21714447]
[1770489832153,1.18770487,2104.9,2104.3,0.02893239]
[1770489832658,1.18770487,2104.9,2103.6,0.02893239]
[1770489832863,0.98256732,2104.8,2103.6,0.02893239]
[1770489833259,0.98256732,2104.8,2103.4,1.18852457]
[1770489833473,0.32298577,2105.2,2104.6,0.02893239]
[1770489833759,1.18725364,2105.7,2104.6,1.21675146]
[1770489833943,0.002,2104.8,2104.6,1.21675146]
[1770489834542,1.18723116,2105.8,2104.6,1.21675146]
[1770489834765,1.18723116,2105.8,2104.9,0.02893239]
[1770489834979,1.18723116,2105.8,2105.2,0.02893239]
[1770489835140,1.18723116,2105.8,2104.9,0.02893239]
[1770489835335,2.16979848,2105.8,2104.9,0.02893239]
[1770489835637,0.98256732,2105.7,2104.9,0.02893239]
[1770489835855,1.18731003,2105.6,2104.9,0.02893239]
[1770489836670,0.98256732,2105.5,2104.6,0.02893239]
[1770489837067,0.98256732,2105.5,2104.5,0.02893239]
[1770489837564,0.98256732,2105.5,2104.2,1.18808572]
[1770489837763,0.98256732,2105.5,2104.4,1.21690901]
[1770489837966,1.18742281,2105.4,2104.4,0.02893239]
[1770489838144,1.18742281,2105.4,2104.7,0.02893239]
[1770489838864,2.16999013,2105.4,2104.7,0.02893239]
[1770489839066,0.98256732,2105.3,2104.4,0.02893239]
[1770489839373,0.98256732,2105.3,2104.1,0.02893239]
[1770489839984,2.17010294,2105.2,2104.4,0.02893239]
[1770489840672,0.98256732,2105.1,2103.7,4.75347281]
[1770489840968,0.98256732,2105.1,2103.6,1.18840566]
[1770489841175,1.18753562,2105.2,2104.4,0.02893239]
[1770489841373,1.18751111,2105.3,2104.4,1.21688766]
[1770489841545,2.17007843,2105.3,2104.4,0.02893239]
[1770489841745,0.98256732,2105.2,2104.4,0.02893239]
[1770489841950,1.18759203,2105.1,2104.4,0.02893239]
[1770489842517,2.17015935,2105.1,2104.4,0.02893239]
[1770489842772,2.17015935,2105.1,2104.1,0.02893239]
[1770489842970,2.17015935,2105.1,2104.4,0.02893239]
[1770489843341,1.18759203,2105.1,2104.4,0.02893239]
[1770489843741,2.17015935,2105.1,2103.9,1.18822969]
[1770489843971,0.98256732,2104.8,2103.6,4.75358233]
[1770489844176,0.98256732,2104.8,2103.2,1.21755953]
[1770489844376,0.98256732,2104.8,2103.8,0.02893239]
[1770489844674,0.98256732,2104.8,2103.5,1.2173884]